Workbook

Sheet Feuil1 (hidden)
C1: FC1 40 | D1: FC1 44 | E1: FC1 48 | F1: FC1 53 | G1: FC1 58 | H1: FC1 63 | I1: FC1 69 | J1: FC1 +69 | K1: FC2 44 | L1: FC2 48 | M1: FC2 53 | N1: FC2 58 | O1: FC2 63 | P1: FC2 69 | Q1: FC2 +69 | R1: FJ48 | S1: FJ53 | T1: FJ58 | U1: FJ63 | V1: FJ69 | W1: FJ75 | X1: FJ+75 | Y1: FS48 | Z1: FS53 | AA1: FS58 | AB1: FS63 | AC1: FS69 | AD1: FS75 | AE1: FS+75 | AF1: C1 45 | AG1: C1 50 | AH1: C1 56 | AI1: C1 62 | AJ1: C1 69 | AK1: C1 77 | AL1: C1 85 | AM1: C1 94 | AN1: C1 +94 | AO1: C2 50 | AP1: C2 56 | AQ1: C2 62 | AR1: C2 69 | AS1: C2 77 | AT1: C2 85 | AU1: C2 94 | AV1: C2 +94 | AW1: J56 | AX1: J62 | AY1: J69 | AZ1: J77 | BA1: J85 | BB1: J94 | BC1: J105 | BD1: J+105 | BE1: S56 | BF1: S62 | BG1: S69 | BH1: S77 | BI1: S85 | BJ1: S94 | BK1: S105 | BL1: S+105
B2: DEBUTANT | C2: 20 | D2: 25 | E2: 30 | F2: 35 | G2: 40 | H2: 45 | I2: 50 | J2: 60 | K2: 30 | L2: 35 | M2: 45 | N2: 50 | O2: 55 | P2: 60 | Q2: 70 | R2: 45 | S2: 55 | T2: 60 | U2: 65 | V2: 70 | W2: 80 | X2: 90 | Y2: 55 | Z2: 65 | AA2: 70 | AB2: 75 | AC2: 80 | AD2: 95 | AE2: 100 | AF2: 35 | AG2: 40 | AH2: 50 | AI2: 75 | AJ2: 85 | AK2: 90 | AL2: 100 | AM2: 110 | AN2: 120 | AO2: 45 | AP2: 65 | AQ2: 85 | AR2: 95 | AS2: 110 | AT2: 120 | AU2: 125 | AV2: 135 | AW2: 80 | AX2: 90 | AY2: 110 | AZ2: 130 | BA2: 145 | BB2: 150 | BC2: 155 | BD2: 165 | BE2: 95 | BF2: 120 | BG2: 130 | BH2: 150 | BI2: 165 | BJ2: 170 | BK2: 175 | BL2: 185
B3: DEPARTEMENTAL | C3: 25 | D3: 30 | E3: 35 | F3: 45 | G3: 50 | H3: 55 | I3: 60 | J3: 70 | K3: 40 | L3: 45 | M3: 55 | N3: 60 | O3: 65 | P3: 70 | Q3: 80 | R3: 55 | S3: 65 | T3: 70 | U3: 75 | V3: 80 | W3: 95 | X3: 100 | Y3: 65 | Z3: 75 | AA3: 80 | AB3: 85 | AC3: 90 | AD3: 105 | AE3: 110 | AF3: 50 | AG3: 55 | AH3: 70 | AI3: 95 | AJ3: 105 | AK3: 110 | AL3: 120 | AM3: 130 | AN3: 140 | AO3: 65 | AP3: 85 | AQ3: 105 | AR3: 115 | AS3: 130 | AT3: 140 | AU3: 145 | AV3: 155 | AW3: 100 | AX3: 120 | AY3: 130 | AZ3: 150 | BA3: 165 | BB3: 170 | BC3: 175 | BD3: 185 | BE3: 115 | BF3: 135 | BG3: 150 | BH3: 170 | BI3: 185 | BJ3: 190 | BK3: 195 | BL3: 205
B4: REGIONAL | C4: 35 | D4: 40 | E4: 45 | F4: 55 | G4: 60 | H4: 65 | I4: 70 | J4: 80 | K4: 50 | L4: 55 | M4: 65 | N4: 70 | O4: 75 | P4: 80 | Q4: 95 | R4: 65 | S4: 75 | T4: 80 | U4: 85 | V4: 90 | W4: 105 | X4: 110 | Y4: 75 | Z4: 85 | AA4: 90 | AB4: 95 | AC4: 105 | AD4: 115 | AE4: 125 | AF4: 60 | AG4: 65 | AH4: 85 | AI4: 105 | AJ4: 115 | AK4: 130 | AL4: 140 | AM4: 145 | AN4: 155 | AO4: 80 | AP4: 100 | AQ4: 120 | AR4: 130 | AS4: 150 | AT4: 160 | AU4: 165 | AV4: 175 | AW4: 115 | AX4: 135 | AY4: 150 | AZ4: 170 | BA4: 185 | BB4: 190 | BC4: 195 | BD4: 205 | BE4: 130 | BF4: 150 | BG4: 170 | BH4: 190 | BI4: 205 | BJ4: 215 | BK4: 220 | BL4: 225
B5: INTERREGIONAL | C5: 45 | D5: 50 | E5: 55 | F5: 65 | G5: 70 | H5: 75 | I5: 80 | J5: 95 | K5: 60 | L5: 65 | M5: 75 | N5: 80 | O5: 85 | P5: 90 | Q5: 105 | R5: 75 | S5: 85 | T5: 90 | U5: 95 | V5: 105 | W5: 115 | X5: 125 | Y5: 85 | Z5: 95 | AA5: 100 | AB5: 110 | AC5: 120 | AD5: 130 | AE5: 140 | AF5: 75 | AG5: 80 | AH5: 100 | AI5: 120 | AJ5: 130 | AK5: 150 | AL5: 160 | AM5: 165 | AN5: 175 | AO5: 95 | AP5: 115 | AQ5: 135 | AR5: 150 | AS5: 170 | AT5: 180 | AU5: 185 | AV5: 195 | AW5: 130 | AX5: 150 | AY5: 170 | AZ5: 190 | BA5: 205 | BB5: 215 | BC5: 220 | BD5: 225 | BE5: 145 | BF5: 170 | BG5: 190 | BH5: 210 | BI5: 225 | BJ5: 235 | BK5: 245 | BL5: 250
B6: FEDERAL | C6: 50 | D6: 60 | E6: 65 | F6: 75 | G6: 80 | H6: 85 | I6: 90 | J6: 105 | K6: 70 | L6: 75 | M6: 85 | N6: 90 | O6: 95 | P6: 105 | Q6: 115 | R6: 85 | S6: 95 | T6: 100 | U6: 110 | V6: 120 | W6: 130 | X6: 140 | Y6: 95 | Z6: 105 | AA6: 115 | AB6: 125 | AC6: 135 | AD6: 145 | AE6: 150 | AF6: 90 | AG6: 95 | AH6: 115 | AI6: 135 | AJ6: 150 | AK6: 170 | AL6: 180 | AM6: 185 | AN6: 195 | AO6: 110 | AP6: 130 | AQ6: 150 | AR6: 170 | AS6: 185 | AT6: 200 | AU6: 210 | AV6: 220 | AW6: 145 | AX6: 170 | AY6: 190 | AZ6: 210 | BA6: 225 | BB6: 235 | BC6: 245 | BD6: 250 | BE6: 170 | BF6: 190 | BG6: 210 | BH6: 240 | BI6: 250 | BJ6: 260 | BK6: 270 | BL6: 280
B7: NATIONAL | C7: 60 | D7: 70 | E7: 75 | F7: 85 | G7: 90 | H7: 95 | I7: 105 | J7: 115 | K7: 80 | L7: 85 | M7: 95 | N7: 100 | O7: 110 | P7: 120 | Q7: 130 | R7: 95 | S7: 105 | T7: 115 | U7: 125 | V7: 135 | W7: 145 | X7: 150 | Y7: 110 | Z7: 120 | AA7: 130 | AB7: 140 | AC7: 150 | AD7: 160 | AE7: 170 | AF7: 105 | AG7: 110 | AH7: 130 | AI7: 150 | AJ7: 170 | AK7: 185 | AL7: 200 | AM7: 210 | AN7: 220 | AO7: 120 | AP7: 145 | AQ7: 170 | AR7: 190 | AS7: 200 | AT7: 220 | AU7: 225 | AV7: 235 | AW7: 170 | AX7: 190 | AY7: 220 | AZ7: 240 | BA7: 250 | BB7: 260 | BC7: 270 | BD7: 280 | BE7: 190 | BF7: 210 | BG7: 240 | BH7: 265 | BI7: 280 | BJ7: 290 | BK7: 300 | BL7: 310
B8: INTERNATIONAL B | C8: 70 | D8: 80 | E8: 85 | F8: 95 | G8: 100 | H8: 110 | I8: 120 | J8: 130 | K8: 90 | L8: 95 | M8: 105 | N8: 115 | O8: 125 | P8: 135 | Q8: 145 | R8: 110 | S8: 120 | T8: 130 | U8: 140 | V8: 150 | W8: 160 | X8: 170 | Y8: 125 | Z8: 140 | AA8: 150 | AB8: 160 | AC8: 170 | AD8: 180 | AE8: 190 | AF8: 115 | AG8: 120 | AH8: 145 | AI8: 170 | AJ8: 190 | AK8: 200 | AL8: 220 | AM8: 225 | AN8: 235 | AO8: 135 | AP8: 170 | AQ8: 190 | AR8: 210 | AS8: 220 | AT8: 240 | AU8: 250 | AV8: 260 | AW8: 190 | AX8: 210 | AY8: 240 | AZ8: 260 | BA8: 280 | BB8: 290 | BC8: 300 | BD8: 310 | BE8: 210 | BF8: 230 | BG8: 260 | BH8: 285 | BI8: 300 | BJ8: 310 | BK8: 325 | BL8: 330
B9: INTERNATIONAL A | C9: 80 | D9: 90 | E9: 95 | F9: 105 | G9: 115 | H9: 125 | I9: 135 | J9: 145 | K9: 100 | L9: 110 | M9: 120 | N9: 130 | O9: 140 | P9: 150 | Q9: 160 | R9: 125 | S9: 135 | T9: 150 | U9: 160 | V9: 170 | W9: 180 | X9: 190 | Y9: 140 | Z9: 160 | AA9: 170 | AB9: 180 | AC9: 190 | AD9: 195 | AE9: 210 | AF9: 130 | AG9: 135 | AH9: 170 | AI9: 190 | AJ9: 210 | AK9: 220 | AL9: 240 | AM9: 250 | AN9: 260 | AO9: 150 | AP9: 190 | AQ9: 210 | AR9: 230 | AS9: 250 | AT9: 260 | AU9: 280 | AV9: 280 | AW9: 210 | AX9: 230 | AY9: 250 | AZ9: 285 | BA9: 300 | BB9: 310 | BC9: 325 | BD9: 330 | BE9: 225 | BF9: 255 | BG9: 275 | BH9: 305 | BI9: 325 | BJ9: 330 | BK9: 345 | BL9: 355
B10: OLYMPIQUE | C10: 1000 | D10: 1000 | E10: 1000 | F10: 1000 | G10: 1000 | H10: 1000 | I10: 1000 | J10: 1000 | K10: 1000 | L10: 1000 | M10: 1000 | N10: 1000 | O10: 1000 | P10: 1000 | Q10: 1000 | R10: 1000 | S10: 1000 | T10: 1000 | U10: 1000 | V10: 1000 | W10: 1000 | X10: 1000 | Y10: 155 | Z10: 175 | AA10: 190 | AB10: 200 | AC10: 205 | AD10: 210 | AE10: 225 | AF10: 1000 | AG10: 1000 | AH10: 1000 | AI10: 1000 | AJ10: 1000 | AK10: 1000 | AL10: 10000 | AM10: 1000 | AN10: 1000 | AO10: 1000 | AP10: 1000 | AQ10: 1000 | AR10: 1000 | AS10: 1000 | AT10: 10000 | AU10: 1000 | AV10: 1000 | AW10: 1000 | AX10: 1000 | AY10: 1000 | AZ10: 10000 | BA10: 1000 | BB10: 1000 | BC10: 1000 | BD10: 10000 | BE10: 240 | BF10: 270 | BG10: 290 | BH10: 320 | BI10: 345 | BJ10: 355 | BK10: 365 | BL10: 375
B11: MINIME | C11: CADET | D11: CADET | E11: JUNIOR | F11: SENIOR | H11: MINIME | I11: CADETTE | J11: CADETTE | K11: JUNIOR | L11: SENIOR
A12: 20.01 | B12: NON | C12: C1 50 | D12: C2 50 | E12: J56 | F12: S56 | G12: 20.01 | H12: NON | I12: FC1 40 | J12: FC2 44 | K12: FJ48 | L12: FS48
A13: 34.01 | B13: NON | C13: C1 50 | D13: C2 50 | E13: J56 | F13: S56 | G13: 30.01 | H13: NON | I13: FC1 40 | J13: FC2 44 | K13: FJ48 | L13: FS48
A14: 38.01 | B14: NON | C14: C1 50 | D14: C2 50 | E14: J56 | F14: S56 | G14: 35.01 | H14: NON | I14: FC1 40 | J14: FC2 44 | K14: FJ48 | L14: FS48
A15: 40.01 | B15: NON | C15: C1 50 | D15: C2 50 | E15: J56 | F15: S56 | G15: 36.01 | H15: NON | I15: FC1 40 | J15: FC2 44 | K15: FJ48 | L15: FS48
A16: 45.01 | B16: NON | C16: C1 50 | D16: C2 50 | E16: J56 | F16: S56 | G16: 40.01 | H16: NON | I16: FC1 44 | J16: FC2 48 | K16: FJ48 | L16: FS48
A17: 50.01 | B17: NON | C17: C1 56 | D17: C2 56 | E17: J56 | F17: S56 | G17: 44.01 | H17: NON | I17: FC1 48 | J17: FC2 48 | K17: FJ48 | L17: FS48
A18: 52.05 | B18: NON | C18: C1 56 | D18: C2 56 | E18: J56 | F18: S56 | G18: 48.01 | H18: NON | I18: FC1 53 | J18: FC2 53 | K18: FJ53 | L18: FS53
A19: 56.01 | B19: NON | C19: C1 62 | D19: C2 62 | E19: J62 | F19: S62 | G19: 53.01 | H19: NON | I19: FC1 58 | J19: FC2 58 | K19: FJ58 | L19: FS58
A20: 62.01 | B20: NON | C20: C1 69 | D20: C2 69 | E20: J69 | F20: S69 | G20: 58.01 | H20: NON | I20: FC1 63 | J20: FC2 63 | K20: FJ63 | L20: FS63
A21: 69.01 | B21: NON | C21: C1 77 | D21: C2 77 | E21: J77 | F21: S77 | G21: 63.01 | H21: NON | I21: FC1 69 | J21: FC2 69 | K21: FJ69 | L21: FS69
A22: 77.01 | B22: NON | C22: C1 85 | D22: C2 85 | E22: J85 | F22: S85 | G22: 69.01 | H22: NON | I22: FC1 +69 | J22: FC2 +69 | K22: FJ75 | L22: FS75
A23: 85.01 | B23: NON | C23: C1 94 | D23: C2 94 | E23: J94 | F23: S94 | G23: 75.01 | H23: NON | I23: FC1 +69 | J23: FC2 +69 | K23: FJ+75 | L23: FS+75
A24: 94.01 | B24: NON | C24: C1 +94 | D24: C2 +94 | E24: J105 | F24: S105 | G24: 110 | H24: NON | I24: FC1 +69 | J24: FC2 +69 | K24: FJ+75 | L24: FS+75
A25: 105.01 | B25: NON | C25: C1 +94 | D25: C2 +94 | E25: J+105 | F25: S+105 | G25: 140 | H25: NON | I25: FC1 +69 | J25: FC2 +69 | K25: FJ+75 | L25: FS+75
A26: 110 | B26: NON | C26: C1 +94 | D26: C2 +94 | E26: J+105 | F26: S+105
A27: 120 | B27: NON | C27: C1 +94 | D27: C2 +94 | E27: J+105 | F27: S+105
A28: 130 | B28: NON | C28: C1 +94 | D28: C2 +94 | E28: J+105 | F28: S+105
A29: 140 | B29: NON | C29: C1 +94 | D29: C2 +94 | E29: J+105 | F29: S+105

Sheet CHAMP FEM
E1: CHAMPIONNAT DE FRANCE DES CLUBS D'HALTEROPHILIE FEMININ 2016 2017
S2: JOURNEE :
G3: DIVISION : | M3: Lieu : | T3: DATE :
E4: ► CLUB :
A5: SEXE | B5: ZONE | C5: REG. | D5: CL. | E5: LICENCE | F5: NOMS | G5: Prénoms | H5: AN | I5: POIDS | J5: CLUB | K5: NAT | L5: 1 | M5: 2 | N5: 3 | O5: ARR | P5: 1 | Q5: 2 | R5: 3 | S5: EP-J | T5: Total | U5: Points | V5: SERIE | X5: Catég | Y5: IWF | AB5: DEB | AC5: DEP + | AD5: REG + | AE5: IRG + | AF5: FED + | AG5: NAT + | AH5: INTB + | AI5: INTA + | AJ5: OLY +
A6: F | H6: 2000 | I6: 45 | J6: =F4 ->  | L6: -50 | M6: -50 | N6: -50 | O6: =IF(H6="","",IF(MAXA(L6:N6)<=0,0,MAXA(L6:N6))) -> 0 | P6: 70 | S6: =IF(H6="","",IF(MAXA(P6:R6)<=0,0,MAXA(P6:R6))) -> 70 | T6: =IF(I6="","",O6+S6) -> 70 | U6: =T6-I6 -> 25 | V6: =IF(H6="","",AQ6) -> IRG + | W6: =IF(AJ6>=0,AJ6,IF(AI6>=0,AI6,IF(AH6>=0,AH6,IF(AG6>=0,AG6,IF(AF6>=0,AF6,IF(AE6>=0,AE6,IF(AD6>=0,AD6,IF(AC6>=0,AC6,AB6)))))))) -> 5 | X6: =IF(I6="","",IF(A6="H",IF(OR(H6="SEN",H6<1997),VLOOKUP(I6,Feuil1!$A$11:$G$29,6),IF(AND(H6>1996,H6<2000),VLOOKUP(I6,Feuil1!$A$11:$G$29,5),IF(AND(H6>1999,H6<2002),VLOOKUP(I6,Feuil1!$A$11:$G$29,4),IF(AND(H6>2001,H6<2004),VLOOKUP(I6,Feuil1!$A$11:$G$29,3),VLOOKUP(I6,Feuil1!$A$11:$G$29,2))))),IF(OR(H6="SEN",H6<1997),VLOOKUP(I6,Feuil1!$G$11:$L$25,6),IF(AND(H6>1996,H6<2000),VLOOKUP(I6,Feuil1!$G$11:$L$25,5),IF(AND(H6>1999,H6<2002),VLOOKUP(I6,Feuil1!$G$11:$L$25,4),IF(AND(H6>2001,H6<2004),VLOOKUP(I6,Feuil1!$G$11:$L$25,3),VLOOKUP(I6,Feuil1!$G$11:$L$25,2))))))) -> FC2 48 | Y6: =IF(I6="","",IF(A6="H",10^(0.794358141*LOG(I6/174.393)^2)*T6,IF(A6="F",10^(0.89726074*LOG(I6/148.026)^2)*T6,""))) -> 121.6304758 | AB6: =T6-HLOOKUP(X6,Feuil1!$C$1:$BJ$10,2,FALSE) -> 35 | AC6: =T6-HLOOKUP(X6,Feuil1!$C$1:$BJ$10,3,FALSE) -> 25 | AD6: =T6-HLOOKUP(X6,Feuil1!$C$1:$BJ$10,4,FALSE) -> 15 | AE6: =T6-HLOOKUP(X6,Feuil1!$C$1:$BJ$10,5,FALSE) -> 5 | AF6: =T6-HLOOKUP(X6,Feuil1!$C$1:$BJ$10,6,FALSE) -> -5 | AG6: =T6-HLOOKUP(X6,Feuil1!$C$1:$BJ$10,7,FALSE) -> -15 | AH6: =T6-HLOOKUP(X6,Feuil1!$C$1:$BJ$10,8,FALSE) -> -25 | AI6: =T6-HLOOKUP(X6,Feuil1!$C$1:$BJ$10,9,FALSE) -> -40 | AJ6: =T6-HLOOKUP(X6,Feuil1!$C$1:$BJ$10,10,FALSE) -> -930 | AQ6: =IF(AJ6>=0,$AJ$5,IF(AI6>=0,$AI$5,IF(AH6>=0,$AH$5,IF(AG6>=0,$AG$5,IF(AF6>=0,$AF$5,IF(AE6>=0,$AE$5,IF(AD6>=0,$AD$5,IF(AC6>=0,$AC$5,$AB$5)))))))) -> IRG +
A7: F | H7: 2003 | I7: 41 | J7: =F4 ->  | L7: 50 | O7: =IF(H7="","",IF(MAXA(L7:N7)<=0,0,MAXA(L7:N7))) -> 50 | P7: 65 | S7: =IF(H7="","",IF(MAXA(P7:R7)<=0,0,MAXA(P7:R7))) -> 65 | T7: =IF(I7="","",O7+S7) -> 115 | U7: =T7-I7 -> 74 | V7: =IF(H7="","",AQ7) -> INTA + | W7: =IF(AJ7>=0,AJ7,IF(AI7>=0,AI7,IF(AH7>=0,AH7,IF(AG7>=0,AG7,IF(AF7>=0,AF7,IF(AE7>=0,AE7,IF(AD7>=0,AD7,IF(AC7>=0,AC7,AB7)))))))) -> 25 | X7: =IF(I7="","",IF(A7="H",IF(OR(H7="SEN",H7<1997),VLOOKUP(I7,Feuil1!$A$11:$G$29,6),IF(AND(H7>1996,H7<2000),VLOOKUP(I7,Feuil1!$A$11:$G$29,5),IF(AND(H7>1999,H7<2002),VLOOKUP(I7,Feuil1!$A$11:$G$29,4),IF(AND(H7>2001,H7<2004),VLOOKUP(I7,Feuil1!$A$11:$G$29,3),VLOOKUP(I7,Feuil1!$A$11:$G$29,2))))),IF(OR(H7="SEN",H7<1997),VLOOKUP(I7,Feuil1!$G$11:$L$25,6),IF(AND(H7>1996,H7<2000),VLOOKUP(I7,Feuil1!$G$11:$L$25,5),IF(AND(H7>1999,H7<2002),VLOOKUP(I7,Feuil1!$G$11:$L$25,4),IF(AND(H7>2001,H7<2004),VLOOKUP(I7,Feuil1!$G$11:$L$25,3),VLOOKUP(I7,Feuil1!$G$11:$L$25,2))))))) -> FC1 44 | Y7: =IF(I7="","",IF(A7="H",10^(0.794358141*LOG(I7/174.393)^2)*T7,IF(A7="F",10^(0.89726074*LOG(I7/148.026)^2)*T7,""))) -> 218.5879716 | AB7: =T7-HLOOKUP(X7,Feuil1!$C$1:$BJ$10,2,FALSE) -> 90 | AC7: =T7-HLOOKUP(X7,Feuil1!$C$1:$BJ$10,3,FALSE) -> 85 | AD7: =T7-HLOOKUP(X7,Feuil1!$C$1:$BJ$10,4,FALSE) -> 75 | AE7: =T7-HLOOKUP(X7,Feuil1!$C$1:$BJ$10,5,FALSE) -> 65 | AF7: =T7-HLOOKUP(X7,Feuil1!$C$1:$BJ$10,6,FALSE) -> 55 | AG7: =T7-HLOOKUP(X7,Feuil1!$C$1:$BJ$10,7,FALSE) -> 45 | AH7: =T7-HLOOKUP(X7,Feuil1!$C$1:$BJ$10,8,FALSE) -> 35 | AI7: =T7-HLOOKUP(X7,Feuil1!$C$1:$BJ$10,9,FALSE) -> 25 | AJ7: =T7-HLOOKUP(X7,Feuil1!$C$1:$BJ$10,10,FALSE) -> -885 | AQ7: =IF(AJ7>=0,$AJ$5,IF(AI7>=0,$AI$5,IF(AH7>=0,$AH$5,IF(AG7>=0,$AG$5,IF(AF7>=0,$AF$5,IF(AE7>=0,$AE$5,IF(AD7>=0,$AD$5,IF(AC7>=0,$AC$5,$AB$5)))))))) -> INTA +
A8: F | H8: 2002 | I8: 36 | J8: =F4 ->  | L8: 40 | O8: 40 | P8: 50 | S8: 50 | T8: 90 | U8: =T8-I8 -> 54 | V8: INTA + | W8: 10 | X8: =IF(I8="","",IF(A8="H",IF(OR(H8="SEN",H8<1997),VLOOKUP(I8,Feuil1!$A$11:$G$29,6),IF(AND(H8>1996,H8<2000),VLOOKUP(I8,Feuil1!$A$11:$G$29,5),IF(AND(H8>1999,H8<2002),VLOOKUP(I8,Feuil1!$A$11:$G$29,4),IF(AND(H8>2001,H8<2004),VLOOKUP(I8,Feuil1!$A$11:$G$29,3),VLOOKUP(I8,Feuil1!$A$11:$G$29,2))))),IF(OR(H8="SEN",H8<1997),VLOOKUP(I8,Feuil1!$G$11:$L$25,6),IF(AND(H8>1996,H8<2000),VLOOKUP(I8,Feuil1!$G$11:$L$25,5),IF(AND(H8>1999,H8<2002),VLOOKUP(I8,Feuil1!$G$11:$L$25,4),IF(AND(H8>2001,H8<2004),VLOOKUP(I8,Feuil1!$G$11:$L$25,3),VLOOKUP(I8,Feuil1!$G$11:$L$25,2))))))) -> FC1 40 | Y8: 196.1305919 | Z8: =V11 -> 737.2776244 | AB8: =T8-HLOOKUP(X8,Feuil1!$C$1:$BJ$10,2,FALSE) -> 70 | AC8: =T8-HLOOKUP(X8,Feuil1!$C$1:$BJ$10,3,FALSE) -> 65 | AD8: =T8-HLOOKUP(X8,Feuil1!$C$1:$BJ$10,4,FALSE) -> 55 | AE8: =T8-HLOOKUP(X8,Feuil1!$C$1:$BJ$10,5,FALSE) -> 45 | AF8: =T8-HLOOKUP(X8,Feuil1!$C$1:$BJ$10,6,FALSE) -> 40 | AG8: =T8-HLOOKUP(X8,Feuil1!$C$1:$BJ$10,7,FALSE) -> 30 | AH8: =T8-HLOOKUP(X8,Feuil1!$C$1:$BJ$10,8,FALSE) -> 20 | AI8: =T8-HLOOKUP(X8,Feuil1!$C$1:$BJ$10,9,FALSE) -> 10 | AJ8: =T8-HLOOKUP(X8,Feuil1!$C$1:$BJ$10,10,FALSE) -> -910 | AQ8: INTA +
A9: F | H9: 2003 | I9: 37 | J9: =F4 ->  | L9: 35 | O9: 35 | P9: 60 | S9: 60 | T9: 95 | U9: =T9-I9 -> 58 | V9: INTA + | W9: 15 | X9: =IF(I9="","",IF(A9="H",IF(OR(H9="SEN",H9<1997),VLOOKUP(I9,Feuil1!$A$11:$G$29,6),IF(AND(H9>1996,H9<2000),VLOOKUP(I9,Feuil1!$A$11:$G$29,5),IF(AND(H9>1999,H9<2002),VLOOKUP(I9,Feuil1!$A$11:$G$29,4),IF(AND(H9>2001,H9<2004),VLOOKUP(I9,Feuil1!$A$11:$G$29,3),VLOOKUP(I9,Feuil1!$A$11:$G$29,2))))),IF(OR(H9="SEN",H9<1997),VLOOKUP(I9,Feuil1!$G$11:$L$25,6),IF(AND(H9>1996,H9<2000),VLOOKUP(I9,Feuil1!$G$11:$L$25,5),IF(AND(H9>1999,H9<2002),VLOOKUP(I9,Feuil1!$G$11:$L$25,4),IF(AND(H9>2001,H9<2004),VLOOKUP(I9,Feuil1!$G$11:$L$25,3),VLOOKUP(I9,Feuil1!$G$11:$L$25,2))))))) -> FC1 40 | Y9: 200.9285852 | Z9: =V20 -> 906.1183799 | AB9: =T9-HLOOKUP(X9,Feuil1!$C$1:$BJ$10,2,FALSE) -> 75 | AC9: =T9-HLOOKUP(X9,Feuil1!$C$1:$BJ$10,3,FALSE) -> 70 | AD9: =T9-HLOOKUP(X9,Feuil1!$C$1:$BJ$10,4,FALSE) -> 60 | AE9: =T9-HLOOKUP(X9,Feuil1!$C$1:$BJ$10,5,FALSE) -> 50 | AF9: =T9-HLOOKUP(X9,Feuil1!$C$1:$BJ$10,6,FALSE) -> 45 | AG9: =T9-HLOOKUP(X9,Feuil1!$C$1:$BJ$10,7,FALSE) -> 35 | AH9: =T9-HLOOKUP(X9,Feuil1!$C$1:$BJ$10,8,FALSE) -> 25 | AI9: =T9-HLOOKUP(X9,Feuil1!$C$1:$BJ$10,9,FALSE) -> 15 | AJ9: =T9-HLOOKUP(X9,Feuil1!$C$1:$BJ$10,10,FALSE) -> -905 | AQ9: INTA +
Z10: =V29 -> 896.5393689 | AB10: =T10-HLOOKUP(X10,Feuil1!$C$1:$BJ$10,2,FALSE) ->  | AC10: =T10-HLOOKUP(X10,Feuil1!$C$1:$BJ$10,3,FALSE) ->  | AD10: =T10-HLOOKUP(X10,Feuil1!$C$1:$BJ$10,4,FALSE) ->  | AE10: =T10-HLOOKUP(X10,Feuil1!$C$1:$BJ$10,5,FALSE) ->  | AF10: =T10-HLOOKUP(X10,Feuil1!$C$1:$BJ$10,6,FALSE) ->  | AG10: =T10-HLOOKUP(X10,Feuil1!$C$1:$BJ$10,7,FALSE) ->  | AH10: =T10-HLOOKUP(X10,Feuil1!$C$1:$BJ$10,8,FALSE) ->  | AI10: =T10-HLOOKUP(X10,Feuil1!$C$1:$BJ$10,9,FALSE) ->  | AJ10: =T10-HLOOKUP(X10,Feuil1!$C$1:$BJ$10,10,FALSE) -> 
F11: CLASSEMENT : | H11: =IF(V11="","",RANK(V11,$Z$8:$Z$11,0)) -> 4 | S11: Score de l'équipe | V11: =IF(H7="","",IF(H9="",SUM(Y6:Y9),(SUM(Y6:Y9)))) -> 737.2776244 | Z11: =V38 -> 942.7497572 | AB11: =S11-HLOOKUP(X11,Feuil1!$C$1:$BJ$10,2,FALSE) ->  | AC11: =S11-HLOOKUP(X11,Feuil1!$C$1:$BJ$10,3,FALSE) ->  | AD11: =S11-HLOOKUP(X11,Feuil1!$C$1:$BJ$10,4,FALSE) ->  | AE11: =S11-HLOOKUP(X11,Feuil1!$C$1:$BJ$10,5,FALSE) ->  | AF11: =S11-HLOOKUP(X11,Feuil1!$C$1:$BJ$10,6,FALSE) ->  | AG11: =S11-HLOOKUP(X11,Feuil1!$C$1:$BJ$10,7,FALSE) ->  | AH11: =S11-HLOOKUP(X11,Feuil1!$C$1:$BJ$10,8,FALSE) ->  | AI11: =S11-HLOOKUP(X11,Feuil1!$C$1:$BJ$10,9,FALSE) ->  | AJ11: =S11-HLOOKUP(X11,Feuil1!$C$1:$BJ$10,10,FALSE) -> 
E13: ► CLUB :
A14: SEXE | B14: ZONE | C14: REG. | D14: CL. | E14: LICENCE | F14: NOMS | G14: Prénoms | H14: AN | I14: POIDS | J14: CLUB | K14: NAT | L14: 1 | M14: 2 | N14: 3 | O14: ARR | P14: 1 | Q14: 2 | R14: 3 | S14: EP-J | T14: Total | U14: Points | V14: SERIE | X14: Catég | Y14: IWF | AB14: DEB | AC14: DEP + | AD14: REG + | AE14: IRG + | AF14: FED + | AG14: NAT + | AH14: INTB + | AI14: INTA + | AJ14: OLY +
A15: F | H15: 1997 | I15: 69 | J15: =F13 ->  | L15: 80 | O15: =IF(H15="","",IF(MAXA(L15:N15)<=0,0,MAXA(L15:N15))) -> 80 | P15: 100 | S15: =IF(H15="","",IF(MAXA(P15:R15)<=0,0,MAXA(P15:R15))) -> 100 | T15: =IF(I15="","",O15+S15) -> 180 | U15: =T15-I15 -> 111 | V15: =IF(H15="","",AQ15) -> INTA + | W15: =IF(AJ15>=0,AJ15,IF(AI15>=0,AI15,IF(AH15>=0,AH15,IF(AG15>=0,AG15,IF(AF15>=0,AF15,IF(AE15>=0,AE15,IF(AD15>=0,AD15,IF(AC15>=0,AC15,AB15)))))))) -> 10 | X15: =IF(I15="","",IF(A15="H",IF(OR(H15="SEN",H15<1997),VLOOKUP(I15,Feuil1!$A$11:$G$29,6),IF(AND(H15>1996,H15<2000),VLOOKUP(I15,Feuil1!$A$11:$G$29,5),IF(AND(H15>1999,H15<2002),VLOOKUP(I15,Feuil1!$A$11:$G$29,4),IF(AND(H15>2001,H15<2004),VLOOKUP(I15,Feuil1!$A$11:$G$29,3),VLOOKUP(I15,Feuil1!$A$11:$G$29,2))))),IF(OR(H15="SEN",H15<1997),VLOOKUP(I15,Feuil1!$G$11:$L$25,6),IF(AND(H15>1996,H15<2000),VLOOKUP(I15,Feuil1!$G$11:$L$25,5),IF(AND(H15>1999,H15<2002),VLOOKUP(I15,Feuil1!$G$11:$L$25,4),IF(AND(H15>2001,H15<2004),VLOOKUP(I15,Feuil1!$G$11:$L$25,3),VLOOKUP(I15,Feuil1!$G$11:$L$25,2))))))) -> FJ69 | Y15: =IF(I15="","",IF(A15="H",10^(0.794358141*LOG(I15/174.393)^2)*T15,IF(A15="F",10^(0.89726074*LOG(I15/148.026)^2)*T15,""))) -> 225.8748677 | AB15: =T15-HLOOKUP(X15,Feuil1!$C$1:$BJ$10,2,FALSE) -> 110 | AC15: =T15-HLOOKUP(X15,Feuil1!$C$1:$BJ$10,3,FALSE) -> 100 | AD15: =T15-HLOOKUP(X15,Feuil1!$C$1:$BJ$10,4,FALSE) -> 90 | AE15: =T15-HLOOKUP(X15,Feuil1!$C$1:$BJ$10,5,FALSE) -> 75 | AF15: =T15-HLOOKUP(X15,Feuil1!$C$1:$BJ$10,6,FALSE) -> 60 | AG15: =T15-HLOOKUP(X15,Feuil1!$C$1:$BJ$10,7,FALSE) -> 45 | AH15: =T15-HLOOKUP(X15,Feuil1!$C$1:$BJ$10,8,FALSE) -> 30 | AI15: =T15-HLOOKUP(X15,Feuil1!$C$1:$BJ$10,9,FALSE) -> 10 | AJ15: =T15-HLOOKUP(X15,Feuil1!$C$1:$BJ$10,10,FALSE) -> -820 | AQ15: =IF(AJ15>=0,$AJ$5,IF(AI15>=0,$AI$5,IF(AH15>=0,$AH$5,IF(AG15>=0,$AG$5,IF(AF15>=0,$AF$5,IF(AE15>=0,$AE$5,IF(AD15>=0,$AD$5,IF(AC15>=0,$AC$5,$AB$5)))))))) -> INTA +
A16: F | H16: 1999 | I16: 75 | J16: =F13 ->  | L16: 75 | O16: =IF(H16="","",IF(MAXA(L16:N16)<=0,0,MAXA(L16:N16))) -> 75 | P16: 105 | S16: =IF(H16="","",IF(MAXA(P16:R16)<=0,0,MAXA(P16:R16))) -> 105 | T16: =IF(I16="","",O16+S16) -> 180 | U16: =T16-I16 -> 105 | V16: =IF(H16="","",AQ16) -> INTA + | W16: =IF(AJ16>=0,AJ16,IF(AI16>=0,AI16,IF(AH16>=0,AH16,IF(AG16>=0,AG16,IF(AF16>=0,AF16,IF(AE16>=0,AE16,IF(AD16>=0,AD16,IF(AC16>=0,AC16,AB16)))))))) -> 0 | X16: =IF(I16="","",IF(A16="H",IF(OR(H16="SEN",H16<1997),VLOOKUP(I16,Feuil1!$A$11:$G$29,6),IF(AND(H16>1996,H16<2000),VLOOKUP(I16,Feuil1!$A$11:$G$29,5),IF(AND(H16>1999,H16<2002),VLOOKUP(I16,Feuil1!$A$11:$G$29,4),IF(AND(H16>2001,H16<2004),VLOOKUP(I16,Feuil1!$A$11:$G$29,3),VLOOKUP(I16,Feuil1!$A$11:$G$29,2))))),IF(OR(H16="SEN",H16<1997),VLOOKUP(I16,Feuil1!$G$11:$L$25,6),IF(AND(H16>1996,H16<2000),VLOOKUP(I16,Feuil1!$G$11:$L$25,5),IF(AND(H16>1999,H16<2002),VLOOKUP(I16,Feuil1!$G$11:$L$25,4),IF(AND(H16>2001,H16<2004),VLOOKUP(I16,Feuil1!$G$11:$L$25,3),VLOOKUP(I16,Feuil1!$G$11:$L$25,2))))))) -> FJ75 | Y16: =IF(I16="","",IF(A16="H",10^(0.794358141*LOG(I16/174.393)^2)*T16,IF(A16="F",10^(0.89726074*LOG(I16/148.026)^2)*T16,""))) -> 215.5277482 | AB16: =T16-HLOOKUP(X16,Feuil1!$C$1:$BJ$10,2,FALSE) -> 100 | AC16: =T16-HLOOKUP(X16,Feuil1!$C$1:$BJ$10,3,FALSE) -> 85 | AD16: =T16-HLOOKUP(X16,Feuil1!$C$1:$BJ$10,4,FALSE) -> 75 | AE16: =T16-HLOOKUP(X16,Feuil1!$C$1:$BJ$10,5,FALSE) -> 65 | AF16: =T16-HLOOKUP(X16,Feuil1!$C$1:$BJ$10,6,FALSE) -> 50 | AG16: =T16-HLOOKUP(X16,Feuil1!$C$1:$BJ$10,7,FALSE) -> 35 | AH16: =T16-HLOOKUP(X16,Feuil1!$C$1:$BJ$10,8,FALSE) -> 20 | AI16: =T16-HLOOKUP(X16,Feuil1!$C$1:$BJ$10,9,FALSE) -> 0 | AJ16: =T16-HLOOKUP(X16,Feuil1!$C$1:$BJ$10,10,FALSE) -> -820 | AQ16: =IF(AJ16>=0,$AJ$5,IF(AI16>=0,$AI$5,IF(AH16>=0,$AH$5,IF(AG16>=0,$AG$5,IF(AF16>=0,$AF$5,IF(AE16>=0,$AE$5,IF(AD16>=0,$AD$5,IF(AC16>=0,$AC$5,$AB$5)))))))) -> INTA +
A17: F | H17: 1995 | I17: 63 | J17: =F13 ->  | L17: 69 | O17: 69 | P17: 90 | S17: 90 | T17: 159 | U17: =T17-I17 -> 96 | V17: NAT + | W17: 19 | X17: =IF(I17="","",IF(A17="H",IF(OR(H17="SEN",H17<1997),VLOOKUP(I17,Feuil1!$A$11:$G$29,6),IF(AND(H17>1996,H17<2000),VLOOKUP(I17,Feuil1!$A$11:$G$29,5),IF(AND(H17>1999,H17<2002),VLOOKUP(I17,Feuil1!$A$11:$G$29,4),IF(AND(H17>2001,H17<2004),VLOOKUP(I17,Feuil1!$A$11:$G$29,3),VLOOKUP(I17,Feuil1!$A$11:$G$29,2))))),IF(OR(H17="SEN",H17<1997),VLOOKUP(I17,Feuil1!$G$11:$L$25,6),IF(AND(H17>1996,H17<2000),VLOOKUP(I17,Feuil1!$G$11:$L$25,5),IF(AND(H17>1999,H17<2002),VLOOKUP(I17,Feuil1!$G$11:$L$25,4),IF(AND(H17>2001,H17<2004),VLOOKUP(I17,Feuil1!$G$11:$L$25,3),VLOOKUP(I17,Feuil1!$G$11:$L$25,2))))))) -> FS63 | Y17: 211.2979555 | AB17: =T17-HLOOKUP(X17,Feuil1!$C$1:$BJ$10,2,FALSE) -> 84 | AC17: =T17-HLOOKUP(X17,Feuil1!$C$1:$BJ$10,3,FALSE) -> 74 | AD17: =T17-HLOOKUP(X17,Feuil1!$C$1:$BJ$10,4,FALSE) -> 64 | AE17: =T17-HLOOKUP(X17,Feuil1!$C$1:$BJ$10,5,FALSE) -> 49 | AF17: =T17-HLOOKUP(X17,Feuil1!$C$1:$BJ$10,6,FALSE) -> 34 | AG17: =T17-HLOOKUP(X17,Feuil1!$C$1:$BJ$10,7,FALSE) -> 19 | AH17: =T17-HLOOKUP(X17,Feuil1!$C$1:$BJ$10,8,FALSE) -> -1 | AI17: =T17-HLOOKUP(X17,Feuil1!$C$1:$BJ$10,9,FALSE) -> -21 | AJ17: =T17-HLOOKUP(X17,Feuil1!$C$1:$BJ$10,10,FALSE) -> -41 | AQ17: NAT +
A18: F | H18: 2000 | I18: 58 | J18: =F13 ->  | L18: 80 | O18: 80 | P18: 100 | S18: 100 | T18: 180 | U18: =T18-I18 -> 122 | V18: INTA + | W18: 50 | X18: =IF(I18="","",IF(A18="H",IF(OR(H18="SEN",H18<1997),VLOOKUP(I18,Feuil1!$A$11:$G$29,6),IF(AND(H18>1996,H18<2000),VLOOKUP(I18,Feuil1!$A$11:$G$29,5),IF(AND(H18>1999,H18<2002),VLOOKUP(I18,Feuil1!$A$11:$G$29,4),IF(AND(H18>2001,H18<2004),VLOOKUP(I18,Feuil1!$A$11:$G$29,3),VLOOKUP(I18,Feuil1!$A$11:$G$29,2))))),IF(OR(H18="SEN",H18<1997),VLOOKUP(I18,Feuil1!$G$11:$L$25,6),IF(AND(H18>1996,H18<2000),VLOOKUP(I18,Feuil1!$G$11:$L$25,5),IF(AND(H18>1999,H18<2002),VLOOKUP(I18,Feuil1!$G$11:$L$25,4),IF(AND(H18>2001,H18<2004),VLOOKUP(I18,Feuil1!$G$11:$L$25,3),VLOOKUP(I18,Feuil1!$G$11:$L$25,2))))))) -> FC2 58 | Y18: 253.4178084 | AB18: =T18-HLOOKUP(X18,Feuil1!$C$1:$BJ$10,2,FALSE) -> 130 | AC18: =T18-HLOOKUP(X18,Feuil1!$C$1:$BJ$10,3,FALSE) -> 120 | AD18: =T18-HLOOKUP(X18,Feuil1!$C$1:$BJ$10,4,FALSE) -> 110 | AE18: =T18-HLOOKUP(X18,Feuil1!$C$1:$BJ$10,5,FALSE) -> 100 | AF18: =T18-HLOOKUP(X18,Feuil1!$C$1:$BJ$10,6,FALSE) -> 90 | AG18: =T18-HLOOKUP(X18,Feuil1!$C$1:$BJ$10,7,FALSE) -> 80 | AH18: =T18-HLOOKUP(X18,Feuil1!$C$1:$BJ$10,8,FALSE) -> 65 | AI18: =T18-HLOOKUP(X18,Feuil1!$C$1:$BJ$10,9,FALSE) -> 50 | AJ18: =T18-HLOOKUP(X18,Feuil1!$C$1:$BJ$10,10,FALSE) -> -820 | AQ18: INTA +
AB19: =T19-HLOOKUP(X19,Feuil1!$C$1:$BJ$10,2,FALSE) ->  | AC19: =T19-HLOOKUP(X19,Feuil1!$C$1:$BJ$10,3,FALSE) ->  | AD19: =T19-HLOOKUP(X19,Feuil1!$C$1:$BJ$10,4,FALSE) ->  | AE19: =T19-HLOOKUP(X19,Feuil1!$C$1:$BJ$10,5,FALSE) ->  | AF19: =T19-HLOOKUP(X19,Feuil1!$C$1:$BJ$10,6,FALSE) ->  | AG19: =T19-HLOOKUP(X19,Feuil1!$C$1:$BJ$10,7,FALSE) ->  | AH19: =T19-HLOOKUP(X19,Feuil1!$C$1:$BJ$10,8,FALSE) ->  | AI19: =T19-HLOOKUP(X19,Feuil1!$C$1:$BJ$10,9,FALSE) ->  | AJ19: =T19-HLOOKUP(X19,Feuil1!$C$1:$BJ$10,10,FALSE) -> 
F20: CLASSEMENT : | H20: =IF(V20="","",RANK(V20,$Z$8:$Z$11,0)) -> 2 | S20: Score de l'équipe | V20: =IF(H16="","",IF(H18="",SUM(Y15:Y18),(SUM(Y15:Y18)))) -> 906.1183799 | AB20: =S20-HLOOKUP(X20,Feuil1!$C$1:$BJ$10,2,FALSE) ->  | AC20: =S20-HLOOKUP(X20,Feuil1!$C$1:$BJ$10,3,FALSE) ->  | AD20: =S20-HLOOKUP(X20,Feuil1!$C$1:$BJ$10,4,FALSE) ->  | AE20: =S20-HLOOKUP(X20,Feuil1!$C$1:$BJ$10,5,FALSE) ->  | AF20: =S20-HLOOKUP(X20,Feuil1!$C$1:$BJ$10,6,FALSE) ->  | AG20: =S20-HLOOKUP(X20,Feuil1!$C$1:$BJ$10,7,FALSE) ->  | AH20: =S20-HLOOKUP(X20,Feuil1!$C$1:$BJ$10,8,FALSE) ->  | AI20: =S20-HLOOKUP(X20,Feuil1!$C$1:$BJ$10,9,FALSE) ->  | AJ20: =S20-HLOOKUP(X20,Feuil1!$C$1:$BJ$10,10,FALSE) -> 
E22: ► CLUB :
A23: SEXE | B23: ZONE | C23: REG. | D23: CL. | E23: LICENCE | F23: NOMS | G23: Prénoms | H23: AN | I23: POIDS | J23: CLUB | K23: NAT | L23: 1 | M23: 2 | N23: 3 | O23: ARR | P23: 1 | Q23: 2 | R23: 3 | S23: EP-J | T23: Total | U23: Points | V23: SERIE | X23: Catég | Y23: IWF | AB23: DEB | AC23: DEP + | AD23: REG + | AE23: IRG + | AF23: FED + | AG23: NAT + | AH23: INTB + | AI23: INTA + | AJ23: OLY +
A24: F | H24: 1997 | I24: 69 | J24: =F22 ->  | L24: 80 | O24: =IF(H24="","",IF(MAXA(L24:N24)<=0,0,MAXA(L24:N24))) -> 80 | P24: 100 | S24: =IF(H24="","",IF(MAXA(P24:R24)<=0,0,MAXA(P24:R24))) -> 100 | T24: =IF(I24="","",O24+S24) -> 180 | U24: =T24-I24 -> 111 | V24: =IF(H24="","",AQ24) -> INTA + | W24: =IF(AJ24>=0,AJ24,IF(AI24>=0,AI24,IF(AH24>=0,AH24,IF(AG24>=0,AG24,IF(AF24>=0,AF24,IF(AE24>=0,AE24,IF(AD24>=0,AD24,IF(AC24>=0,AC24,AB24)))))))) -> 10 | X24: =IF(I24="","",IF(A24="H",IF(OR(H24="SEN",H24<1997),VLOOKUP(I24,Feuil1!$A$11:$G$29,6),IF(AND(H24>1996,H24<2000),VLOOKUP(I24,Feuil1!$A$11:$G$29,5),IF(AND(H24>1999,H24<2002),VLOOKUP(I24,Feuil1!$A$11:$G$29,4),IF(AND(H24>2001,H24<2004),VLOOKUP(I24,Feuil1!$A$11:$G$29,3),VLOOKUP(I24,Feuil1!$A$11:$G$29,2))))),IF(OR(H24="SEN",H24<1997),VLOOKUP(I24,Feuil1!$G$11:$L$25,6),IF(AND(H24>1996,H24<2000),VLOOKUP(I24,Feuil1!$G$11:$L$25,5),IF(AND(H24>1999,H24<2002),VLOOKUP(I24,Feuil1!$G$11:$L$25,4),IF(AND(H24>2001,H24<2004),VLOOKUP(I24,Feuil1!$G$11:$L$25,3),VLOOKUP(I24,Feuil1!$G$11:$L$25,2))))))) -> FJ69 | Y24: =IF(I24="","",IF(A24="H",10^(0.794358141*LOG(I24/174.393)^2)*T24,IF(A24="F",10^(0.89726074*LOG(I24/148.026)^2)*T24,""))) -> 225.8748677 | AB24: =T24-HLOOKUP(X24,Feuil1!$C$1:$BJ$10,2,FALSE) -> 110 | AC24: =T24-HLOOKUP(X24,Feuil1!$C$1:$BJ$10,3,FALSE) -> 100 | AD24: =T24-HLOOKUP(X24,Feuil1!$C$1:$BJ$10,4,FALSE) -> 90 | AE24: =T24-HLOOKUP(X24,Feuil1!$C$1:$BJ$10,5,FALSE) -> 75 | AF24: =T24-HLOOKUP(X24,Feuil1!$C$1:$BJ$10,6,FALSE) -> 60 | AG24: =T24-HLOOKUP(X24,Feuil1!$C$1:$BJ$10,7,FALSE) -> 45 | AH24: =T24-HLOOKUP(X24,Feuil1!$C$1:$BJ$10,8,FALSE) -> 30 | AI24: =T24-HLOOKUP(X24,Feuil1!$C$1:$BJ$10,9,FALSE) -> 10 | AJ24: =T24-HLOOKUP(X24,Feuil1!$C$1:$BJ$10,10,FALSE) -> -820 | AQ24: =IF(AJ24>=0,$AJ$5,IF(AI24>=0,$AI$5,IF(AH24>=0,$AH$5,IF(AG24>=0,$AG$5,IF(AF24>=0,$AF$5,IF(AE24>=0,$AE$5,IF(AD24>=0,$AD$5,IF(AC24>=0,$AC$5,$AB$5)))))))) -> INTA +
A25: F | H25: 1999 | I25: 75 | J25: =F22 ->  | L25: 70 | O25: =IF(H25="","",IF(MAXA(L25:N25)<=0,0,MAXA(L25:N25))) -> 70 | P25: 102 | S25: =IF(H25="","",IF(MAXA(P25:R25)<=0,0,MAXA(P25:R25))) -> 102 | T25: =IF(I25="","",O25+S25) -> 172 | U25: =T25-I25 -> 97 | V25: =IF(H25="","",AQ25) -> INTB + | W25: =IF(AJ25>=0,AJ25,IF(AI25>=0,AI25,IF(AH25>=0,AH25,IF(AG25>=0,AG25,IF(AF25>=0,AF25,IF(AE25>=0,AE25,IF(AD25>=0,AD25,IF(AC25>=0,AC25,AB25)))))))) -> 12 | X25: =IF(I25="","",IF(A25="H",IF(OR(H25="SEN",H25<1997),VLOOKUP(I25,Feuil1!$A$11:$G$29,6),IF(AND(H25>1996,H25<2000),VLOOKUP(I25,Feuil1!$A$11:$G$29,5),IF(AND(H25>1999,H25<2002),VLOOKUP(I25,Feuil1!$A$11:$G$29,4),IF(AND(H25>2001,H25<2004),VLOOKUP(I25,Feuil1!$A$11:$G$29,3),VLOOKUP(I25,Feuil1!$A$11:$G$29,2))))),IF(OR(H25="SEN",H25<1997),VLOOKUP(I25,Feuil1!$G$11:$L$25,6),IF(AND(H25>1996,H25<2000),VLOOKUP(I25,Feuil1!$G$11:$L$25,5),IF(AND(H25>1999,H25<2002),VLOOKUP(I25,Feuil1!$G$11:$L$25,4),IF(AND(H25>2001,H25<2004),VLOOKUP(I25,Feuil1!$G$11:$L$25,3),VLOOKUP(I25,Feuil1!$G$11:$L$25,2))))))) -> FJ75 | Y25: =IF(I25="","",IF(A25="H",10^(0.794358141*LOG(I25/174.393)^2)*T25,IF(A25="F",10^(0.89726074*LOG(I25/148.026)^2)*T25,""))) -> 205.9487372 | AB25: =T25-HLOOKUP(X25,Feuil1!$C$1:$BJ$10,2,FALSE) -> 92 | AC25: =T25-HLOOKUP(X25,Feuil1!$C$1:$BJ$10,3,FALSE) -> 77 | AD25: =T25-HLOOKUP(X25,Feuil1!$C$1:$BJ$10,4,FALSE) -> 67 | AE25: =T25-HLOOKUP(X25,Feuil1!$C$1:$BJ$10,5,FALSE) -> 57 | AF25: =T25-HLOOKUP(X25,Feuil1!$C$1:$BJ$10,6,FALSE) -> 42 | AG25: =T25-HLOOKUP(X25,Feuil1!$C$1:$BJ$10,7,FALSE) -> 27 | AH25: =T25-HLOOKUP(X25,Feuil1!$C$1:$BJ$10,8,FALSE) -> 12 | AI25: =T25-HLOOKUP(X25,Feuil1!$C$1:$BJ$10,9,FALSE) -> -8 | AJ25: =T25-HLOOKUP(X25,Feuil1!$C$1:$BJ$10,10,FALSE) -> -828 | AQ25: =IF(AJ25>=0,$AJ$5,IF(AI25>=0,$AI$5,IF(AH25>=0,$AH$5,IF(AG25>=0,$AG$5,IF(AF25>=0,$AF$5,IF(AE25>=0,$AE$5,IF(AD25>=0,$AD$5,IF(AC25>=0,$AC$5,$AB$5)))))))) -> INTB +
A26: F | H26: 1995 | I26: 63 | J26: =F22 ->  | L26: 69 | O26: 69 | P26: 90 | S26: 90 | T26: 159 | U26: =T26-I26 -> 96 | V26: NAT + | W26: 19 | X26: =IF(I26="","",IF(A26="H",IF(OR(H26="SEN",H26<1997),VLOOKUP(I26,Feuil1!$A$11:$G$29,6),IF(AND(H26>1996,H26<2000),VLOOKUP(I26,Feuil1!$A$11:$G$29,5),IF(AND(H26>1999,H26<2002),VLOOKUP(I26,Feuil1!$A$11:$G$29,4),IF(AND(H26>2001,H26<2004),VLOOKUP(I26,Feuil1!$A$11:$G$29,3),VLOOKUP(I26,Feuil1!$A$11:$G$29,2))))),IF(OR(H26="SEN",H26<1997),VLOOKUP(I26,Feuil1!$G$11:$L$25,6),IF(AND(H26>1996,H26<2000),VLOOKUP(I26,Feuil1!$G$11:$L$25,5),IF(AND(H26>1999,H26<2002),VLOOKUP(I26,Feuil1!$G$11:$L$25,4),IF(AND(H26>2001,H26<2004),VLOOKUP(I26,Feuil1!$G$11:$L$25,3),VLOOKUP(I26,Feuil1!$G$11:$L$25,2))))))) -> FS63 | Y26: 211.2979555 | AB26: =T26-HLOOKUP(X26,Feuil1!$C$1:$BJ$10,2,FALSE) -> 84 | AC26: =T26-HLOOKUP(X26,Feuil1!$C$1:$BJ$10,3,FALSE) -> 74 | AD26: =T26-HLOOKUP(X26,Feuil1!$C$1:$BJ$10,4,FALSE) -> 64 | AE26: =T26-HLOOKUP(X26,Feuil1!$C$1:$BJ$10,5,FALSE) -> 49 | AF26: =T26-HLOOKUP(X26,Feuil1!$C$1:$BJ$10,6,FALSE) -> 34 | AG26: =T26-HLOOKUP(X26,Feuil1!$C$1:$BJ$10,7,FALSE) -> 19 | AH26: =T26-HLOOKUP(X26,Feuil1!$C$1:$BJ$10,8,FALSE) -> -1 | AI26: =T26-HLOOKUP(X26,Feuil1!$C$1:$BJ$10,9,FALSE) -> -21 | AJ26: =T26-HLOOKUP(X26,Feuil1!$C$1:$BJ$10,10,FALSE) -> -41 | AQ26: NAT +
A27: F | H27: 2000 | I27: 58 | J27: =F22 ->  | L27: 80 | O27: 80 | P27: 100 | S27: 100 | T27: 180 | U27: =T27-I27 -> 122 | V27: INTA + | W27: 50 | X27: =IF(I27="","",IF(A27="H",IF(OR(H27="SEN",H27<1997),VLOOKUP(I27,Feuil1!$A$11:$G$29,6),IF(AND(H27>1996,H27<2000),VLOOKUP(I27,Feuil1!$A$11:$G$29,5),IF(AND(H27>1999,H27<2002),VLOOKUP(I27,Feuil1!$A$11:$G$29,4),IF(AND(H27>2001,H27<2004),VLOOKUP(I27,Feuil1!$A$11:$G$29,3),VLOOKUP(I27,Feuil1!$A$11:$G$29,2))))),IF(OR(H27="SEN",H27<1997),VLOOKUP(I27,Feuil1!$G$11:$L$25,6),IF(AND(H27>1996,H27<2000),VLOOKUP(I27,Feuil1!$G$11:$L$25,5),IF(AND(H27>1999,H27<2002),VLOOKUP(I27,Feuil1!$G$11:$L$25,4),IF(AND(H27>2001,H27<2004),VLOOKUP(I27,Feuil1!$G$11:$L$25,3),VLOOKUP(I27,Feuil1!$G$11:$L$25,2))))))) -> FC2 58 | Y27: 253.4178084 | AB27: =T27-HLOOKUP(X27,Feuil1!$C$1:$BJ$10,2,FALSE) -> 130 | AC27: =T27-HLOOKUP(X27,Feuil1!$C$1:$BJ$10,3,FALSE) -> 120 | AD27: =T27-HLOOKUP(X27,Feuil1!$C$1:$BJ$10,4,FALSE) -> 110 | AE27: =T27-HLOOKUP(X27,Feuil1!$C$1:$BJ$10,5,FALSE) -> 100 | AF27: =T27-HLOOKUP(X27,Feuil1!$C$1:$BJ$10,6,FALSE) -> 90 | AG27: =T27-HLOOKUP(X27,Feuil1!$C$1:$BJ$10,7,FALSE) -> 80 | AH27: =T27-HLOOKUP(X27,Feuil1!$C$1:$BJ$10,8,FALSE) -> 65 | AI27: =T27-HLOOKUP(X27,Feuil1!$C$1:$BJ$10,9,FALSE) -> 50 | AJ27: =T27-HLOOKUP(X27,Feuil1!$C$1:$BJ$10,10,FALSE) -> -820 | AQ27: INTA +
AB28: =T28-HLOOKUP(X28,Feuil1!$C$1:$BJ$10,2,FALSE) ->  | AC28: =T28-HLOOKUP(X28,Feuil1!$C$1:$BJ$10,3,FALSE) ->  | AD28: =T28-HLOOKUP(X28,Feuil1!$C$1:$BJ$10,4,FALSE) ->  | AE28: =T28-HLOOKUP(X28,Feuil1!$C$1:$BJ$10,5,FALSE) ->  | AF28: =T28-HLOOKUP(X28,Feuil1!$C$1:$BJ$10,6,FALSE) ->  | AG28: =T28-HLOOKUP(X28,Feuil1!$C$1:$BJ$10,7,FALSE) ->  | AH28: =T28-HLOOKUP(X28,Feuil1!$C$1:$BJ$10,8,FALSE) ->  | AI28: =T28-HLOOKUP(X28,Feuil1!$C$1:$BJ$10,9,FALSE) ->  | AJ28: =T28-HLOOKUP(X28,Feuil1!$C$1:$BJ$10,10,FALSE) -> 
F29: CLASSEMENT : | H29: =IF(V29="","",RANK(V29,$Z$8:$Z$11,0)) -> 3 | S29: Score de l'équipe | V29: =IF(H25="","",IF(H27="",SUM(Y24:Y27),(SUM(Y24:Y27)))) -> 896.5393689 | AB29: =S29-HLOOKUP(X29,Feuil1!$C$1:$BJ$10,2,FALSE) ->  | AC29: =S29-HLOOKUP(X29,Feuil1!$C$1:$BJ$10,3,FALSE) ->  | AD29: =S29-HLOOKUP(X29,Feuil1!$C$1:$BJ$10,4,FALSE) ->  | AE29: =S29-HLOOKUP(X29,Feuil1!$C$1:$BJ$10,5,FALSE) ->  | AF29: =S29-HLOOKUP(X29,Feuil1!$C$1:$BJ$10,6,FALSE) ->  | AG29: =S29-HLOOKUP(X29,Feuil1!$C$1:$BJ$10,7,FALSE) ->  | AH29: =S29-HLOOKUP(X29,Feuil1!$C$1:$BJ$10,8,FALSE) ->  | AI29: =S29-HLOOKUP(X29,Feuil1!$C$1:$BJ$10,9,FALSE) ->  | AJ29: =S29-HLOOKUP(X29,Feuil1!$C$1:$BJ$10,10,FALSE) -> 
E31: ► CLUB :
A32: SEXE | B32: ZONE | C32: REG. | D32: CL. | E32: LICENCE | F32: NOMS | G32: Prénoms | H32: AN | I32: POIDS | J32: CLUB | K32: NAT | L32: 1 | M32: 2 | N32: 3 | O32: ARR | P32: 1 | Q32: 2 | R32: 3 | S32: EP-J | T32: Total | U32: Points | V32: SERIE | X32: Catég | Y32: IWF | AB32: DEB | AC32: DEP + | AD32: REG + | AE32: IRG + | AF32: FED + | AG32: NAT + | AH32: INTB + | AI32: INTA + | AJ32: OLY +
A33: F | H33: 1996 | I33: 53 | J33: =F31 ->  | L33: 60 | O33: =IF(H33="","",IF(MAXA(L33:N33)<=0,0,MAXA(L33:N33))) -> 60 | P33: 80 | S33: =IF(H33="","",IF(MAXA(P33:R33)<=0,0,MAXA(P33:R33))) -> 80 | T33: =IF(I33="","",O33+S33) -> 140 | U33: =T33-I33 -> 87 | V33: =IF(H33="","",AQ33) -> INTB + | W33: =IF(AJ33>=0,AJ33,IF(AI33>=0,AI33,IF(AH33>=0,AH33,IF(AG33>=0,AG33,IF(AF33>=0,AF33,IF(AE33>=0,AE33,IF(AD33>=0,AD33,IF(AC33>=0,AC33,AB33)))))))) -> 0 | X33: =IF(I33="","",IF(A33="H",IF(OR(H33="SEN",H33<1997),VLOOKUP(I33,Feuil1!$A$11:$G$29,6),IF(AND(H33>1996,H33<2000),VLOOKUP(I33,Feuil1!$A$11:$G$29,5),IF(AND(H33>1999,H33<2002),VLOOKUP(I33,Feuil1!$A$11:$G$29,4),IF(AND(H33>2001,H33<2004),VLOOKUP(I33,Feuil1!$A$11:$G$29,3),VLOOKUP(I33,Feuil1!$A$11:$G$29,2))))),IF(OR(H33="SEN",H33<1997),VLOOKUP(I33,Feuil1!$G$11:$L$25,6),IF(AND(H33>1996,H33<2000),VLOOKUP(I33,Feuil1!$G$11:$L$25,5),IF(AND(H33>1999,H33<2002),VLOOKUP(I33,Feuil1!$G$11:$L$25,4),IF(AND(H33>2001,H33<2004),VLOOKUP(I33,Feuil1!$G$11:$L$25,3),VLOOKUP(I33,Feuil1!$G$11:$L$25,2))))))) -> FS53 | Y33: =IF(I33="","",IF(A33="H",10^(0.794358141*LOG(I33/174.393)^2)*T33,IF(A33="F",10^(0.89726074*LOG(I33/148.026)^2)*T33,""))) -> 211.1821884 | AB33: =T33-HLOOKUP(X33,Feuil1!$C$1:$BJ$10,2,FALSE) -> 75 | AC33: =T33-HLOOKUP(X33,Feuil1!$C$1:$BJ$10,3,FALSE) -> 65 | AD33: =T33-HLOOKUP(X33,Feuil1!$C$1:$BJ$10,4,FALSE) -> 55 | AE33: =T33-HLOOKUP(X33,Feuil1!$C$1:$BJ$10,5,FALSE) -> 45 | AF33: =T33-HLOOKUP(X33,Feuil1!$C$1:$BJ$10,6,FALSE) -> 35 | AG33: =T33-HLOOKUP(X33,Feuil1!$C$1:$BJ$10,7,FALSE) -> 20 | AH33: =T33-HLOOKUP(X33,Feuil1!$C$1:$BJ$10,8,FALSE) -> 0 | AI33: =T33-HLOOKUP(X33,Feuil1!$C$1:$BJ$10,9,FALSE) -> -20 | AJ33: =T33-HLOOKUP(X33,Feuil1!$C$1:$BJ$10,10,FALSE) -> -35 | AQ33: =IF(AJ33>=0,$AJ$5,IF(AI33>=0,$AI$5,IF(AH33>=0,$AH$5,IF(AG33>=0,$AG$5,IF(AF33>=0,$AF$5,IF(AE33>=0,$AE$5,IF(AD33>=0,$AD$5,IF(AC33>=0,$AC$5,$AB$5)))))))) -> INTB +
A34: F | H34: 2002 | I34: 63 | J34: =F31 ->  | L34: 60 | O34: =IF(H34="","",IF(MAXA(L34:N34)<=0,0,MAXA(L34:N34))) -> 60 | P34: 85 | S34: =IF(H34="","",IF(MAXA(P34:R34)<=0,0,MAXA(P34:R34))) -> 85 | T34: =IF(I34="","",O34+S34) -> 145 | U34: =T34-I34 -> 82 | V34: =IF(H34="","",AQ34) -> INTA + | W34: =IF(AJ34>=0,AJ34,IF(AI34>=0,AI34,IF(AH34>=0,AH34,IF(AG34>=0,AG34,IF(AF34>=0,AF34,IF(AE34>=0,AE34,IF(AD34>=0,AD34,IF(AC34>=0,AC34,AB34)))))))) -> 20 | X34: =IF(I34="","",IF(A34="H",IF(OR(H34="SEN",H34<1997),VLOOKUP(I34,Feuil1!$A$11:$G$29,6),IF(AND(H34>1996,H34<2000),VLOOKUP(I34,Feuil1!$A$11:$G$29,5),IF(AND(H34>1999,H34<2002),VLOOKUP(I34,Feuil1!$A$11:$G$29,4),IF(AND(H34>2001,H34<2004),VLOOKUP(I34,Feuil1!$A$11:$G$29,3),VLOOKUP(I34,Feuil1!$A$11:$G$29,2))))),IF(OR(H34="SEN",H34<1997),VLOOKUP(I34,Feuil1!$G$11:$L$25,6),IF(AND(H34>1996,H34<2000),VLOOKUP(I34,Feuil1!$G$11:$L$25,5),IF(AND(H34>1999,H34<2002),VLOOKUP(I34,Feuil1!$G$11:$L$25,4),IF(AND(H34>2001,H34<2004),VLOOKUP(I34,Feuil1!$G$11:$L$25,3),VLOOKUP(I34,Feuil1!$G$11:$L$25,2))))))) -> FC1 63 | Y34: =IF(I34="","",IF(A34="H",10^(0.794358141*LOG(I34/174.393)^2)*T34,IF(A34="F",10^(0.89726074*LOG(I34/148.026)^2)*T34,""))) -> 192.6931041 | AB34: =T34-HLOOKUP(X34,Feuil1!$C$1:$BJ$10,2,FALSE) -> 100 | AC34: =T34-HLOOKUP(X34,Feuil1!$C$1:$BJ$10,3,FALSE) -> 90 | AD34: =T34-HLOOKUP(X34,Feuil1!$C$1:$BJ$10,4,FALSE) -> 80 | AE34: =T34-HLOOKUP(X34,Feuil1!$C$1:$BJ$10,5,FALSE) -> 70 | AF34: =T34-HLOOKUP(X34,Feuil1!$C$1:$BJ$10,6,FALSE) -> 60 | AG34: =T34-HLOOKUP(X34,Feuil1!$C$1:$BJ$10,7,FALSE) -> 50 | AH34: =T34-HLOOKUP(X34,Feuil1!$C$1:$BJ$10,8,FALSE) -> 35 | AI34: =T34-HLOOKUP(X34,Feuil1!$C$1:$BJ$10,9,FALSE) -> 20 | AJ34: =T34-HLOOKUP(X34,Feuil1!$C$1:$BJ$10,10,FALSE) -> -855 | AQ34: =IF(AJ34>=0,$AJ$5,IF(AI34>=0,$AI$5,IF(AH34>=0,$AH$5,IF(AG34>=0,$AG$5,IF(AF34>=0,$AF$5,IF(AE34>=0,$AE$5,IF(AD34>=0,$AD$5,IF(AC34>=0,$AC$5,$AB$5)))))))) -> INTA +
A35: F | H35: 2000 | I35: 58 | J35: =F31 ->  | L35: 80 | O35: 80 | P35: 99 | S35: 99 | T35: 179 | U35: =T35-I35 -> 121 | V35: INTA + | W35: 49 | X35: =IF(I35="","",IF(A35="H",IF(OR(H35="SEN",H35<1997),VLOOKUP(I35,Feuil1!$A$11:$G$29,6),IF(AND(H35>1996,H35<2000),VLOOKUP(I35,Feuil1!$A$11:$G$29,5),IF(AND(H35>1999,H35<2002),VLOOKUP(I35,Feuil1!$A$11:$G$29,4),IF(AND(H35>2001,H35<2004),VLOOKUP(I35,Feuil1!$A$11:$G$29,3),VLOOKUP(I35,Feuil1!$A$11:$G$29,2))))),IF(OR(H35="SEN",H35<1997),VLOOKUP(I35,Feuil1!$G$11:$L$25,6),IF(AND(H35>1996,H35<2000),VLOOKUP(I35,Feuil1!$G$11:$L$25,5),IF(AND(H35>1999,H35<2002),VLOOKUP(I35,Feuil1!$G$11:$L$25,4),IF(AND(H35>2001,H35<2004),VLOOKUP(I35,Feuil1!$G$11:$L$25,3),VLOOKUP(I35,Feuil1!$G$11:$L$25,2))))))) -> FC2 58 | Y35: 252.0099317 | AB35: =T35-HLOOKUP(X35,Feuil1!$C$1:$BJ$10,2,FALSE) -> 129 | AC35: =T35-HLOOKUP(X35,Feuil1!$C$1:$BJ$10,3,FALSE) -> 119 | AD35: =T35-HLOOKUP(X35,Feuil1!$C$1:$BJ$10,4,FALSE) -> 109 | AE35: =T35-HLOOKUP(X35,Feuil1!$C$1:$BJ$10,5,FALSE) -> 99 | AF35: =T35-HLOOKUP(X35,Feuil1!$C$1:$BJ$10,6,FALSE) -> 89 | AG35: =T35-HLOOKUP(X35,Feuil1!$C$1:$BJ$10,7,FALSE) -> 79 | AH35: =T35-HLOOKUP(X35,Feuil1!$C$1:$BJ$10,8,FALSE) -> 64 | AI35: =T35-HLOOKUP(X35,Feuil1!$C$1:$BJ$10,9,FALSE) -> 49 | AJ35: =T35-HLOOKUP(X35,Feuil1!$C$1:$BJ$10,10,FALSE) -> -821 | AQ35: INTA +
A36: F | H36: 1998 | I36: 48 | J36: =F31 ->  | L36: 75 | O36: 75 | P36: 100 | S36: 100 | T36: 175 | U36: =T36-I36 -> 127 | V36: INTA + | W36: 50 | X36: =IF(I36="","",IF(A36="H",IF(OR(H36="SEN",H36<1997),VLOOKUP(I36,Feuil1!$A$11:$G$29,6),IF(AND(H36>1996,H36<2000),VLOOKUP(I36,Feuil1!$A$11:$G$29,5),IF(AND(H36>1999,H36<2002),VLOOKUP(I36,Feuil1!$A$11:$G$29,4),IF(AND(H36>2001,H36<2004),VLOOKUP(I36,Feuil1!$A$11:$G$29,3),VLOOKUP(I36,Feuil1!$A$11:$G$29,2))))),IF(OR(H36="SEN",H36<1997),VLOOKUP(I36,Feuil1!$G$11:$L$25,6),IF(AND(H36>1996,H36<2000),VLOOKUP(I36,Feuil1!$G$11:$L$25,5),IF(AND(H36>1999,H36<2002),VLOOKUP(I36,Feuil1!$G$11:$L$25,4),IF(AND(H36>2001,H36<2004),VLOOKUP(I36,Feuil1!$G$11:$L$25,3),VLOOKUP(I36,Feuil1!$G$11:$L$25,2))))))) -> FJ48 | Y36: 286.8645331 | AB36: =T36-HLOOKUP(X36,Feuil1!$C$1:$BJ$10,2,FALSE) -> 130 | AC36: =T36-HLOOKUP(X36,Feuil1!$C$1:$BJ$10,3,FALSE) -> 120 | AD36: =T36-HLOOKUP(X36,Feuil1!$C$1:$BJ$10,4,FALSE) -> 110 | AE36: =T36-HLOOKUP(X36,Feuil1!$C$1:$BJ$10,5,FALSE) -> 100 | AF36: =T36-HLOOKUP(X36,Feuil1!$C$1:$BJ$10,6,FALSE) -> 90 | AG36: =T36-HLOOKUP(X36,Feuil1!$C$1:$BJ$10,7,FALSE) -> 80 | AH36: =T36-HLOOKUP(X36,Feuil1!$C$1:$BJ$10,8,FALSE) -> 65 | AI36: =T36-HLOOKUP(X36,Feuil1!$C$1:$BJ$10,9,FALSE) -> 50 | AJ36: =T36-HLOOKUP(X36,Feuil1!$C$1:$BJ$10,10,FALSE) -> -825 | AQ36: INTA +
AB37: =T37-HLOOKUP(X37,Feuil1!$C$1:$BJ$10,2,FALSE) ->  | AC37: =T37-HLOOKUP(X37,Feuil1!$C$1:$BJ$10,3,FALSE) ->  | AD37: =T37-HLOOKUP(X37,Feuil1!$C$1:$BJ$10,4,FALSE) ->  | AE37: =T37-HLOOKUP(X37,Feuil1!$C$1:$BJ$10,5,FALSE) ->  | AF37: =T37-HLOOKUP(X37,Feuil1!$C$1:$BJ$10,6,FALSE) ->  | AG37: =T37-HLOOKUP(X37,Feuil1!$C$1:$BJ$10,7,FALSE) ->  | AH37: =T37-HLOOKUP(X37,Feuil1!$C$1:$BJ$10,8,FALSE) ->  | AI37: =T37-HLOOKUP(X37,Feuil1!$C$1:$BJ$10,9,FALSE) ->  | AJ37: =T37-HLOOKUP(X37,Feuil1!$C$1:$BJ$10,10,FALSE) -> 
F38: CLASSEMENT : | H38: =IF(V38="","",RANK(V38,$Z$8:$Z$11,0)) -> 1 | S38: Score de l'équipe | V38: =IF(H34="","",IF(H36="",SUM(Y33:Y36),(SUM(Y33:Y36)))) -> 942.7497572 | AB38: =S38-HLOOKUP(X38,Feuil1!$C$1:$BJ$10,2,FALSE) ->  | AC38: =S38-HLOOKUP(X38,Feuil1!$C$1:$BJ$10,3,FALSE) ->  | AD38: =S38-HLOOKUP(X38,Feuil1!$C$1:$BJ$10,4,FALSE) ->  | AE38: =S38-HLOOKUP(X38,Feuil1!$C$1:$BJ$10,5,FALSE) ->  | AF38: =S38-HLOOKUP(X38,Feuil1!$C$1:$BJ$10,6,FALSE) ->  | AG38: =S38-HLOOKUP(X38,Feuil1!$C$1:$BJ$10,7,FALSE) ->  | AH38: =S38-HLOOKUP(X38,Feuil1!$C$1:$BJ$10,8,FALSE) ->  | AI38: =S38-HLOOKUP(X38,Feuil1!$C$1:$BJ$10,9,FALSE) ->  | AJ38: =S38-HLOOKUP(X38,Feuil1!$C$1:$BJ$10,10,FALSE) -> 
AB39: =T39-HLOOKUP(X39,Feuil1!$C$1:$BJ$10,2,FALSE) ->  | AC39: =T39-HLOOKUP(X39,Feuil1!$C$1:$BJ$10,3,FALSE) ->  | AD39: =T39-HLOOKUP(X39,Feuil1!$C$1:$BJ$10,4,FALSE) ->  | AE39: =T39-HLOOKUP(X39,Feuil1!$C$1:$BJ$10,5,FALSE) ->  | AF39: =T39-HLOOKUP(X39,Feuil1!$C$1:$BJ$10,6,FALSE) ->  | AG39: =T39-HLOOKUP(X39,Feuil1!$C$1:$BJ$10,7,FALSE) ->  | AH39: =T39-HLOOKUP(X39,Feuil1!$C$1:$BJ$10,8,FALSE) ->  | AI39: =T39-HLOOKUP(X39,Feuil1!$C$1:$BJ$10,9,FALSE) ->  | AJ39: =T39-HLOOKUP(X39,Feuil1!$C$1:$BJ$10,10,FALSE) -> 
F40: Secrétaire de Compétition | I40: Arbitre 2 | L40: Arbitre 1 | Q40: Arbitre 3 | AB40: =T40-HLOOKUP(X40,Feuil1!$C$1:$BJ$10,2,FALSE) ->  | AC40: =T40-HLOOKUP(X40,Feuil1!$C$1:$BJ$10,3,FALSE) ->  | AD40: =T40-HLOOKUP(X40,Feuil1!$C$1:$BJ$10,4,FALSE) ->  | AE40: =T40-HLOOKUP(X40,Feuil1!$C$1:$BJ$10,5,FALSE) ->  | AF40: =T40-HLOOKUP(X40,Feuil1!$C$1:$BJ$10,6,FALSE) ->  | AG40: =T40-HLOOKUP(X40,Feuil1!$C$1:$BJ$10,7,FALSE) ->  | AH40: =T40-HLOOKUP(X40,Feuil1!$C$1:$BJ$10,8,FALSE) ->  | AI40: =T40-HLOOKUP(X40,Feuil1!$C$1:$BJ$10,9,FALSE) ->  | AJ40: =T40-HLOOKUP(X40,Feuil1!$C$1:$BJ$10,10,FALSE) -> 
E41: Nom : | H41: Noms : | AB41: =T41-HLOOKUP(X41,Feuil1!$C$1:$BJ$10,2,FALSE) ->  | AC41: =T41-HLOOKUP(X41,Feuil1!$C$1:$BJ$10,3,FALSE) ->  | AD41: =T41-HLOOKUP(X41,Feuil1!$C$1:$BJ$10,4,FALSE) ->  | AE41: =T41-HLOOKUP(X41,Feuil1!$C$1:$BJ$10,5,FALSE) ->  | AF41: =T41-HLOOKUP(X41,Feuil1!$C$1:$BJ$10,6,FALSE) ->  | AG41: =T41-HLOOKUP(X41,Feuil1!$C$1:$BJ$10,7,FALSE) ->  | AH41: =T41-HLOOKUP(X41,Feuil1!$C$1:$BJ$10,8,FALSE) ->  | AI41: =T41-HLOOKUP(X41,Feuil1!$C$1:$BJ$10,9,FALSE) ->  | AJ41: =T41-HLOOKUP(X41,Feuil1!$C$1:$BJ$10,10,FALSE) -> 
E42: Signature : | H42: Signatures : | AB42: =T42-HLOOKUP(X42,Feuil1!$C$1:$BJ$10,2,FALSE) ->  | AC42: =T42-HLOOKUP(X42,Feuil1!$C$1:$BJ$10,3,FALSE) ->  | AD42: =T42-HLOOKUP(X42,Feuil1!$C$1:$BJ$10,4,FALSE) ->  | AE42: =T42-HLOOKUP(X42,Feuil1!$C$1:$BJ$10,5,FALSE) ->  | AF42: =T42-HLOOKUP(X42,Feuil1!$C$1:$BJ$10,6,FALSE) ->  | AG42: =T42-HLOOKUP(X42,Feuil1!$C$1:$BJ$10,7,FALSE) ->  | AH42: =T42-HLOOKUP(X42,Feuil1!$C$1:$BJ$10,8,FALSE) ->  | AI42: =T42-HLOOKUP(X42,Feuil1!$C$1:$BJ$10,9,FALSE) ->  | AJ42: =T42-HLOOKUP(X42,Feuil1!$C$1:$BJ$10,10,FALSE) -> 
AB435: J77 | AC435: J85 | AD435: J94 | AE435: J105 | AF435: J+105 | AH435: J56 | AI435: J62 | AJ435: J69 | AK435: J77 | AL435: J85 | AM435: J94 | AN435: J105 | AO435: J+105 | AQ435: S56 | AR435: S62 | AS435: S69 | AT435: S77 | AU435: S85 | AV435: S94 | AW435: S105 | AX435: S+105
AB436: 145 | AC436: 160 | AD436: 170 | AE436: 180 | AF436: 190 | AH436: 100 | AI436: 115 | AJ436: 130 | AK436: 145 | AL436: 160 | AM436: 170 | AN436: 180 | AO436: 190 | AQ436: 115 | AR436: 135 | AS436: 150 | AT436: 165 | AU436: 180 | AV436: 190 | AW436: 200 | AX436: 210
AB437: 165 | AC437: 180 | AD437: 190 | AE437: 200 | AF437: 210 | AH437: 115 | AI437: 135 | AJ437: 150 | AK437: 165 | AL437: 180 | AM437: 190 | AN437: 200 | AO437: 210 | AQ437: 130 | AR437: 150 | AS437: 165 | AT437: 185 | AU437: 200 | AV437: 210 | AW437: 220 | AX437: 230
AB438: 185 | AC438: 200 | AD438: 210 | AE438: 220 | AF438: 230 | AH438: 130 | AI438: 150 | AJ438: 165 | AK438: 185 | AL438: 200 | AM438: 210 | AN438: 220 | AO438: 230 | AQ438: 145 | AR438: 165 | AS438: 180 | AT438: 200 | AU438: 220 | AV438: 230 | AW438: 240 | AX438: 250
AB439: 200 | AC439: 220 | AD439: 230 | AE439: 240 | AF439: 250 | AH439: 145 | AI439: 165 | AJ439: 180 | AK439: 200 | AL439: 220 | AM439: 230 | AN439: 240 | AO439: 250 | AQ439: 175 | AR439: 195 | AS439: 215 | AT439: 235 | AU439: 250 | AV439: 260 | AW439: 275 | AX439: 280
AB440: 235 | AC440: 250 | AD440: 260 | AE440: 275 | AF440: 280 | AH440: 175 | AI440: 195 | AJ440: 215 | AK440: 235 | AL440: 250 | AM440: 260 | AN440: 275 | AO440: 280 | AQ440: 210 | AR440: 230 | AS440: 250 | AT440: 270 | AU440: 290 | AV440: 300 | AW440: 310 | AX440: 325
AB441: 270 | AC441: 290 | AD441: 300 | AE441: 310 | AF441: 325 | AH441: 210 | AI441: 230 | AJ441: 250 | AK441: 270 | AL441: 290 | AM441: 300 | AN441: 310 | AO441: 325 | AQ441: 230 | AR441: 255 | AS441: 275 | AT441: 300 | AU441: 315 | AV441: 335 | AW441: 345 | AX441: 355
AB442: 320 | AC442: 335 | AD442: 355 | AE442: 370 | AF442: 380 | AH442: 245 | AI442: 270 | AJ442: 295 | AK442: 320 | AL442: 335 | AM442: 355 | AN442: 370 | AO442: 380 | AQ442: 245 | AR442: 270 | AS442: 295 | AT442: 320 | AU442: 335 | AV442: 355 | AW442: 370 | AX442: 380
